[Event "*** SCC Grand Prix: Titled Tuesday Blitz"]
[Site "Chess.com"]
[Date "2020.08.25"]
[Round "1"]
[White "Ermito2020"]
[Black "GodDMuhammad"]
[Result "1-0"]
[WhiteElo "2626"]
[BlackElo "2290"]
[TimeControl "180+1"]
[EndTime "10:06:25 PDT"]
[Termination "Ermito2020 won by resignation"]

1. e4 {[%clk 0:03:00.9]} 1... c6 {[%clk 0:02:57.9]} 2. d4 {[%clk 0:03:00]} 2...
d5 {[%clk 0:02:57.7]} 3. e5 {[%clk 0:03:00.5]} 3... Bf5 {[%clk 0:02:57]} 4. Nf3
{[%clk 0:03:01.4]} 4... e6 {[%clk 0:02:57.2]} 5. Be2 {[%clk 0:03:01.3]} 5... c5
{[%clk 0:02:56.7]} 6. Be3 {[%clk 0:03:01.2]} 6... Nc6 {[%clk 0:02:56.7]} 7. O-O
{[%clk 0:03:00]} 7... Qb6 {[%clk 0:02:56.1]} 8. Nc3 {[%clk 0:02:59]} 8... c4
{[%clk 0:02:52.1]} 9. b3 {[%clk 0:02:58.3]} 9... Qa5 {[%clk 0:02:49.8]} 10. Bd2
{[%clk 0:02:33.7]} 10... Bb4 {[%clk 0:02:48.7]} 11. Qe1 {[%clk 0:02:33.6]} 11...
Bxc2 {[%clk 0:02:45.8]} 12. bxc4 {[%clk 0:02:33.5]} 12... Nge7 {[%clk
0:02:42.3]} 13. a3 {[%clk 0:02:31.6]} 13... Bxc3 {[%clk 0:02:38.2]} 14. Bxc3
{[%clk 0:02:31.1]} 14... Qc7 {[%clk 0:02:37.7]} 15. c5 {[%clk 0:02:30.4]} 15...
O-O {[%clk 0:02:35.3]} 16. Qd2 {[%clk 0:02:29.2]} 16... Bg6 {[%clk 0:02:34.8]}
17. Nh4 {[%clk 0:02:28.8]} 17... Nf5 {[%clk 0:02:34]} 18. Nxf5 {[%clk
0:02:07.2]} 18... Bxf5 {[%clk 0:02:32.2]} 19. g4 {[%clk 0:02:07.7]} 19... Bg6
{[%clk 0:02:30.8]} 20. f4 {[%clk 0:02:08.3]} 20... f5 {[%clk 0:02:28.4]} 21. g5
{[%clk 0:02:07.1]} 21... b6 {[%clk 0:02:23.7]} 22. cxb6 {[%clk 0:02:04.3]} 22...
axb6 {[%clk 0:02:21.1]} 23. Rfc1 {[%clk 0:02:04.1]} 23... Qb7 {[%clk 0:02:08.8]}
24. h4 {[%clk 0:02:03.1]} 24... Rfc8 {[%clk 0:01:54.5]} 25. h5 {[%clk
0:02:02.3]} 25... Be8 {[%clk 0:01:55]} 26. Kf2 {[%clk 0:02:01.4]} 26... Na5
{[%clk 0:01:51.6]} 27. Bxa5 {[%clk 0:01:51.6]} 27... bxa5 {[%clk 0:01:52.5]} 28.
Rc3 {[%clk 0:01:37.4]} 28... Qb6 {[%clk 0:01:30.6]} 29. Rac1 {[%clk 0:01:35.6]}
29... Rxc3 {[%clk 0:01:18]} 30. Qxc3 {[%clk 0:01:35.1]} 30... a4 {[%clk
0:01:16.2]} 31. h6 {[%clk 0:01:34]} 31... Bd7 {[%clk 0:00:50.3]} 32. Qc5 {[%clk
0:01:18.1]} 32... Qb2 {[%clk 0:00:36.5]} 33. Qe7 {[%clk 0:01:10]} 33... Qxd4+
{[%clk 0:00:29.1]} 34. Kg2 {[%clk 0:01:03]} 34... gxh6 {[%clk 0:00:18.4]} 35.
gxh6 {[%clk 0:01:02.2]} 35... Qe4+ {[%clk 0:00:16.8]} 36. Bf3 {[%clk 0:01:01.2]}
1-0

[Event "*** SCC Grand Prix: Titled Tuesday Blitz"]
[Site "Chess.com"]
[Date "2020.08.25"]
[Round "1"]
[White "Roza_Idrisova"]
[Black "Mr_Sinigami"]
[Result "0-1"]
[WhiteElo "2210"]
[BlackElo "2534"]
[TimeControl "180+1"]
[EndTime "10:06:26 PDT"]
[Termination "Mr_Sinigami won by resignation"]

1. d4 {[%clk 0:03:00.9]} 1... Nf6 {[%clk 0:02:35]} 2. Nf3 {[%clk 0:03:00.2]}
2... g6 {[%clk 0:02:34.9]} 3. c4 {[%clk 0:02:59.6]} 3... Bg7 {[%clk 0:02:34.7]}
4. Nc3 {[%clk 0:02:59.5]} 4... O-O {[%clk 0:02:34.4]} 5. e4 {[%clk 0:02:58.8]}
5... d6 {[%clk 0:02:34.9]} 6. Be2 {[%clk 0:02:58.4]} 6... e5 {[%clk 0:02:34.9]}
7. O-O {[%clk 0:02:57.8]} 7... Nc6 {[%clk 0:02:35.2]} 8. d5 {[%clk 0:02:57.6]}
8... Ne7 {[%clk 0:02:35.4]} 9. b4 {[%clk 0:02:57.1]} 9... a5 {[%clk 0:02:34.6]}
10. bxa5 {[%clk 0:02:57.1]} 10... Rxa5 {[%clk 0:02:32.7]} 11. a4 {[%clk
0:02:57.1]} 11... Nd7 {[%clk 0:02:32.5]} 12. Ba3 {[%clk 0:02:56.9]} 12... Bh6
{[%clk 0:02:32.2]} 13. Bb4 {[%clk 0:02:56.5]} 13... Ra6 {[%clk 0:02:30.7]} 14.
a5 {[%clk 0:02:53.9]} 14... f5 {[%clk 0:02:30]} 15. Nb5 {[%clk 0:02:33.4]} 15...
fxe4 {[%clk 0:02:25.7]} 16. Nd2 {[%clk 0:02:31.6]} 16... e3 {[%clk 0:02:24.7]}
17. Ne4 {[%clk 0:02:30.9]} 17... exf2+ {[%clk 0:02:22.2]} 18. Kh1 {[%clk
0:02:29.3]} 18... Nf5 {[%clk 0:02:20.6]} 19. c5 {[%clk 0:02:23.2]} 19... Qh4
{[%clk 0:01:52.5]} 20. Bf3 {[%clk 0:02:15.6]} 20... Bf4 {[%clk 0:01:45.2]} 21.
g3 {[%clk 0:02:05.5]} 21... Nxg3+ {[%clk 0:01:44.3]} 22. Nxg3 {[%clk 0:01:50.2]}
22... Bxg3 {[%clk 0:01:45.2]} 23. Rxf2 {[%clk 0:01:38.1]} 23... Bxf2 {[%clk
0:01:43.6]} 24. cxd6 {[%clk 0:01:32]} 24... Qxb4 {[%clk 0:01:38.9]} 25. Nxc7
{[%clk 0:01:30.9]} 25... Rxa5 {[%clk 0:01:34.3]} 26. Rb1 {[%clk 0:01:29.4]}
26... Qf4 {[%clk 0:01:25.4]} 27. Bg2 {[%clk 0:01:25.9]} 27... Nc5 {[%clk
0:01:24.2]} 28. Ne6 {[%clk 0:01:15.3]} 28... Nxe6 {[%clk 0:01:22.7]} 29. dxe6
{[%clk 0:01:15.3]} 29... Bxe6 {[%clk 0:01:20.5]} 30. d7 {[%clk 0:01:07.1]} 30...
Bd4 {[%clk 0:01:19]} 31. Qe1 {[%clk 0:00:56.2]} 31... Ra2 {[%clk 0:01:15.6]} 32.
Qg3 {[%clk 0:00:41.4]} 32... Qxg3 {[%clk 0:00:43.9]} 33. hxg3 {[%clk 0:00:40.9]}
33... Rxg2 {[%clk 0:00:44]} 34. Kxg2 {[%clk 0:00:38]} 34... Bxd7 {[%clk
0:00:44.1]} 0-1

[Event "*** SCC Grand Prix: Titled Tuesday Blitz"]
[Site "Chess.com"]
[Date "2020.08.25"]
[Round "1"]
[White "AwareIdea"]
[Black "Phenix2k"]
[Result "0-1"]
[WhiteElo "2472"]
[BlackElo "2101"]
[TimeControl "180+1"]
[EndTime "10:06:30 PDT"]
[Termination "Phenix2k won by resignation"]

1. d4 {[%clk 0:02:59.6]} 1... Nf6 {[%clk 0:02:59.2]} 2. Nf3 {[%clk 0:02:59.6]}
2... g6 {[%clk 0:02:59]} 3. c4 {[%clk 0:02:58.6]} 3... Bg7 {[%clk 0:02:59.2]} 4.
e3 {[%clk 0:02:57.7]} 4... O-O {[%clk 0:02:59]} 5. Be2 {[%clk 0:02:58.3]} 5...
d5 {[%clk 0:02:56.9]} 6. O-O {[%clk 0:02:59.2]} 6... dxc4 {[%clk 0:02:53.5]} 7.
Bxc4 {[%clk 0:03:00.1]} 7... c5 {[%clk 0:02:53.5]} 8. dxc5 {[%clk 0:02:57.2]}
8... Qa5 {[%clk 0:02:53.4]} 9. Qc2 {[%clk 0:02:54.9]} 9... Bf5 {[%clk
0:02:46.4]} 10. Qb3 {[%clk 0:02:54.3]} 10... Nbd7 {[%clk 0:02:41.5]} 11. Bd2
{[%clk 0:02:52.5]} 11... Qxc5 {[%clk 0:02:39.1]} 12. Rc1 {[%clk 0:02:51.7]}
12... Qb6 {[%clk 0:02:38.8]} 13. Nc3 {[%clk 0:02:43.9]} 13... Qxb3 {[%clk
0:02:35.1]} 14. Bxb3 {[%clk 0:02:44.8]} 14... Nc5 {[%clk 0:02:34.9]} 15. Nd4
{[%clk 0:02:38.3]} 15... Nd3 {[%clk 0:02:26.7]} 16. Nxf5 {[%clk 0:02:34.3]}
16... gxf5 {[%clk 0:02:27]} 17. Rc2 {[%clk 0:02:33.2]} 17... e6 {[%clk
0:02:25.6]} 18. f3 {[%clk 0:02:30.5]} 18... Rfd8 {[%clk 0:02:18.5]} 19. Kf1
{[%clk 0:02:23.8]} 19... Nb4 {[%clk 0:02:17.5]} 20. Ke2 {[%clk 0:02:18]} 20...
Nxc2 {[%clk 0:02:17]} 21. Bxc2 {[%clk 0:02:18.9]} 21... Nd5 {[%clk 0:02:15.9]}
22. Nxd5 {[%clk 0:02:17.5]} 22... Rxd5 {[%clk 0:02:14.8]} 23. e4 {[%clk
0:02:07.2]} 23... Rb5 {[%clk 0:02:09.4]} 24. exf5 {[%clk 0:01:52.9]} 24... Rxb2
{[%clk 0:02:08]} 25. Rc1 {[%clk 0:01:31.2]} 25... Rc8 {[%clk 0:02:07.4]} 26. Kd1
{[%clk 0:01:10.5]} 26... exf5 {[%clk 0:01:58]} 27. g3 {[%clk 0:01:03.7]} 27...
Rd8 {[%clk 0:01:54.2]} 28. Ke2 {[%clk 0:00:58.8]} 28... Rc8 {[%clk 0:01:44.2]}
29. Kd1 {[%clk 0:00:57.1]} 29... Rxa2 {[%clk 0:01:43.8]} 30. g4 {[%clk
0:00:56.6]} 30... b5 {[%clk 0:01:39.7]} 31. h4 {[%clk 0:00:51.6]} 31... a5
{[%clk 0:01:36.7]} 32. gxf5 {[%clk 0:00:47]} 32... Bf6 {[%clk 0:01:36]} 33. Bg5
{[%clk 0:00:44.7]} 33... Rcxc2 {[%clk 0:01:26.1]} 34. Rxc2 {[%clk 0:00:41]}
34... Rxc2 {[%clk 0:01:25.9]} 35. Kxc2 {[%clk 0:00:41.9]} 35... Bxg5 {[%clk
0:01:26]} 36. hxg5 {[%clk 0:00:42.8]} 36... b4 {[%clk 0:01:22.3]} 37. Kb3 {[%clk
0:00:42.6]} 37... Kf8 {[%clk 0:01:21.7]} 38. f6 {[%clk 0:00:30.1]} 38... Ke8
{[%clk 0:01:19.5]} 39. f4 {[%clk 0:00:27.7]} 39... Kd7 {[%clk 0:01:19.1]} 40. f5
{[%clk 0:00:27.9]} 40... Kd6 {[%clk 0:01:15.8]} 0-1

[Event "*** SCC Grand Prix: Titled Tuesday Blitz"]
[Site "Chess.com"]
[Date "2020.08.25"]
[Round "1"]
[White "chessdjw"]
[Black "GaboSalazar2001"]
[Result "1-0"]
[WhiteElo "2592"]
[BlackElo "2268"]
[TimeControl "180+1"]
[EndTime "10:06:31 PDT"]
[Termination "chessdjw won by resignation"]

1. d4 {[%clk 0:03:00.2]} 1... Nf6 {[%clk 0:02:59.8]} 2. c4 {[%clk 0:02:59]} 2...
c5 {[%clk 0:03:00.4]} 3. d5 {[%clk 0:02:54.6]} 3... b5 {[%clk 0:03:01]} 4. cxb5
{[%clk 0:02:52.9]} 4... a6 {[%clk 0:03:01.7]} 5. bxa6 {[%clk 0:02:49.8]} 5... g6
{[%clk 0:03:02.4]} 6. Nc3 {[%clk 0:02:49.9]} 6... Bg7 {[%clk 0:03:03]} 7. Nf3
{[%clk 0:02:49.3]} 7... O-O {[%clk 0:03:03.2]} 8. a7 {[%clk 0:02:47.9]} 8...
Rxa7 {[%clk 0:03:02]} 9. e4 {[%clk 0:02:47.5]} 9... e6 {[%clk 0:02:51.6]} 10.
Be2 {[%clk 0:02:47.3]} 10... exd5 {[%clk 0:02:51.5]} 11. exd5 {[%clk 0:02:48.2]}
11... d6 {[%clk 0:02:50.5]} 12. O-O {[%clk 0:02:47.6]} 12... Na6 {[%clk
0:02:40.7]} 13. Nb5 {[%clk 0:02:47.2]} 13... Re7 {[%clk 0:02:10.3]} 14. Bf4
{[%clk 0:02:33.9]} 14... Ne4 {[%clk 0:01:56.6]} 15. Rb1 {[%clk 0:02:08]} 15...
Nc7 {[%clk 0:01:54.3]} 16. a4 {[%clk 0:02:00.8]} 16... Bb7 {[%clk 0:01:42.6]}
17. Bc4 {[%clk 0:01:59.9]} 17... Nxb5 {[%clk 0:01:10.3]} 18. axb5 {[%clk
0:01:52.6]} 18... Qc7 {[%clk 0:01:01.5]} 19. Re1 {[%clk 0:01:51.7]} 19... Rfe8
{[%clk 0:01:01.6]} 20. Qc2 {[%clk 0:01:51]} 20... Bc8 {[%clk 0:00:41.4]} 21. h3
{[%clk 0:01:20.1]} 21... Bf5 {[%clk 0:00:40]} 22. Nh4 {[%clk 0:01:19.7]} 22...
Nd2 {[%clk 0:00:30.3]} 23. Rxe7 {[%clk 0:01:09]} 23... Bxc2 {[%clk 0:00:18.5]}
24. Rxe8+ {[%clk 0:01:04.3]} 24... Bf8 {[%clk 0:00:18.9]} 25. Bh6 {[%clk
0:00:40.7]} 25... Qe7 {[%clk 0:00:17.6]} 26. Rxe7 {[%clk 0:00:37.4]} 26... Bxe7
{[%clk 0:00:18.5]} 27. Re1 {[%clk 0:00:36.8]} 1-0

[Event "*** SCC Grand Prix: Titled Tuesday Blitz"]
[Site "Chess.com"]
[Date "2020.08.25"]
[Round "1"]
[White "ENajer77"]
[Black "narutosmith"]
[Result "1-0"]
[WhiteElo "2610"]
[BlackElo "2277"]
[TimeControl "180+1"]
[EndTime "10:06:32 PDT"]
[Termination "ENajer77 won by checkmate"]

1. e4 {[%clk 0:03:00.3]} 1... c5 {[%clk 0:02:59.4]} 2. Nf3 {[%clk 0:02:59.2]}
2... e6 {[%clk 0:02:56.6]} 3. d4 {[%clk 0:02:58.6]} 3... cxd4 {[%clk 0:02:55.5]}
4. Nxd4 {[%clk 0:02:58.5]} 4... Nc6 {[%clk 0:02:56]} 5. Nc3 {[%clk 0:02:58.5]}
5... Qc7 {[%clk 0:02:53.5]} 6. Be3 {[%clk 0:02:56.8]} 6... a6 {[%clk 0:02:53.1]}
7. Bd3 {[%clk 0:02:56.7]} 7... b5 {[%clk 0:02:38.9]} 8. O-O {[%clk 0:02:56]}
8... Bb7 {[%clk 0:02:35.5]} 9. Nb3 {[%clk 0:02:53.7]} 9... Nf6 {[%clk 0:02:34]}
10. f4 {[%clk 0:02:53.2]} 10... d6 {[%clk 0:02:32.3]} 11. Qe2 {[%clk 0:02:46.4]}
11... Be7 {[%clk 0:02:31.3]} 12. a4 {[%clk 0:02:41.9]} 12... b4 {[%clk
0:02:28.8]} 13. Nb1 {[%clk 0:02:40.9]} 13... O-O {[%clk 0:02:17.9]} 14. a5
{[%clk 0:02:39.2]} 14... Nd7 {[%clk 0:02:09.3]} 15. N1d2 {[%clk 0:02:38.2]}
15... Nc5 {[%clk 0:02:08.2]} 16. Nxc5 {[%clk 0:02:13.5]} 16... dxc5 {[%clk
0:02:06.8]} 17. Nc4 {[%clk 0:02:13.5]} 17... Nd4 {[%clk 0:02:02.3]} 18. Qf2
{[%clk 0:02:13.2]} 18... Rad8 {[%clk 0:01:59.6]} 19. Rad1 {[%clk 0:02:02.6]}
19... Bc6 {[%clk 0:01:58.5]} 20. Ne5 {[%clk 0:01:52]} 20... Bb5 {[%clk
0:01:45.3]} 21. Bxb5 {[%clk 0:01:46.8]} 21... axb5 {[%clk 0:01:23.5]} 22. Bxd4
{[%clk 0:01:45.8]} 22... cxd4 {[%clk 0:01:23.2]} 23. Ra1 {[%clk 0:01:42.4]}
23... d3 {[%clk 0:01:07.1]} 24. Nxd3 {[%clk 0:01:35.4]} 24... b3 {[%clk
0:00:57.4]} 25. Rfc1 {[%clk 0:01:35.1]} 25... Qc4 {[%clk 0:00:48.8]} 26. Ne5
{[%clk 0:01:16.2]} 26... Qxe4 {[%clk 0:00:38.3]} 27. cxb3 {[%clk 0:01:16.1]}
27... f6 {[%clk 0:00:20.5]} 28. Nc6 {[%clk 0:01:12.9]} 28... Rd7 {[%clk
0:00:14.8]} 29. Nxe7+ {[%clk 0:01:11.5]} 29... Rxe7 {[%clk 0:00:15.7]} 30. a6
{[%clk 0:01:04.3]} 30... Ra8 {[%clk 0:00:13.9]} 31. Qb6 {[%clk 0:01:01.9]} 31...
Qxf4 {[%clk 0:00:10.8]} 32. a7 {[%clk 0:01:00.3]} 32... Rexa7 {[%clk 0:00:09.2]}
33. Qxe6+ {[%clk 0:00:54.3]} 33... Kh8 {[%clk 0:00:08.7]} 34. Rc8+ {[%clk
0:00:50.7]} 34... Rxc8 {[%clk 0:00:06.4]} 35. Qxc8# {[%clk 0:00:51.3]} 1-0

[Event "*** SCC Grand Prix: Titled Tuesday Blitz"]
[Site "Chess.com"]
[Date "2020.08.25"]
[Round "1"]
[White "checkitas"]
[Black "WPWPWP-2015"]
[Result "0-1"]
[WhiteElo "1871"]
[BlackElo "2463"]
[TimeControl "180+1"]
[EndTime "10:06:32 PDT"]
[Termination "WPWPWP-2015 won by resignation"]

1. d4 {[%clk 0:02:55.4]} 1... Nf6 {[%clk 0:02:54.8]} 2. c4 {[%clk 0:02:55]} 2...
e6 {[%clk 0:02:54]} 3. Nf3 {[%clk 0:02:54.5]} 3... b6 {[%clk 0:02:53.6]} 4. g3
{[%clk 0:02:54.2]} 4... Ba6 {[%clk 0:02:52.9]} 5. b3 {[%clk 0:02:53.3]} 5...
Bb4+ {[%clk 0:02:51.9]} 6. Bd2 {[%clk 0:02:52.8]} 6... Be7 {[%clk 0:02:51.7]} 7.
Nc3 {[%clk 0:02:51.7]} 7... Bb7 {[%clk 0:02:49.5]} 8. Bg2 {[%clk 0:02:51.2]}
8... O-O {[%clk 0:02:48.6]} 9. O-O {[%clk 0:02:49.8]} 9... d6 {[%clk 0:02:48]}
10. Qc2 {[%clk 0:01:40]} 10... c5 {[%clk 0:02:38.6]} 11. e3 {[%clk 0:01:35.8]}
11... Nbd7 {[%clk 0:02:37.1]} 12. Rad1 {[%clk 0:01:32.8]} 12... Rc8 {[%clk
0:02:33.4]} 13. Rfe1 {[%clk 0:01:27.7]} 13... Qc7 {[%clk 0:02:32.6]} 14. d5
{[%clk 0:01:26.1]} 14... exd5 {[%clk 0:02:30.2]} 15. cxd5 {[%clk 0:01:24.5]}
15... Nxd5 {[%clk 0:02:28.4]} 16. Nxd5 {[%clk 0:01:19.6]} 16... Bxd5 {[%clk
0:02:27.1]} 17. Bc3 {[%clk 0:01:14]} 17... Be6 {[%clk 0:02:09.5]} 18. e4 {[%clk
0:01:11.7]} 18... Ne5 {[%clk 0:01:57.7]} 19. Nxe5 {[%clk 0:01:10.7]} 19... dxe5
{[%clk 0:01:57.2]} 20. f4 {[%clk 0:01:11.6]} 20... exf4 {[%clk 0:01:55.7]} 21.
Qf2 {[%clk 0:01:11.7]} 21... fxg3 {[%clk 0:01:52.9]} 22. hxg3 {[%clk 0:01:12.6]}
22... Rcd8 {[%clk 0:01:40]} 23. Kh2 {[%clk 0:01:09.9]} 23... Rxd1 {[%clk
0:01:36.8]} 24. Rxd1 {[%clk 0:01:10.8]} 24... Rd8 {[%clk 0:01:36.3]} 25. Rf1
{[%clk 0:01:07]} 25... Bd6 {[%clk 0:01:33.7]} 26. Qe3 {[%clk 0:01:01.7]} 26...
Be5 {[%clk 0:01:31.2]} 27. Bxe5 {[%clk 0:01:00.1]} 27... Qxe5 {[%clk 0:01:30.4]}
28. Rf4 {[%clk 0:01:01]} 28... h6 {[%clk 0:01:23]} 29. Rf2 {[%clk 0:01:00.2]}
29... h5 {[%clk 0:01:18.3]} 30. Rf1 {[%clk 0:00:58.1]} 30... h4 {[%clk 0:01:16]}
31. Rg1 {[%clk 0:00:55.6]} 31... Qxg3+ {[%clk 0:01:14.8]} 32. Qxg3 {[%clk
0:00:56.5]} 32... hxg3+ {[%clk 0:01:14.9]} 33. Kxg3 {[%clk 0:00:57.4]} 33... Rd2
{[%clk 0:01:11.7]} 34. Bf3 {[%clk 0:00:55.1]} 34... Kf8 {[%clk 0:01:09]} 35. Rh1
{[%clk 0:00:40.6]} 35... Rxa2 {[%clk 0:01:05.4]} 36. Rh8+ {[%clk 0:00:03.5]}
36... Ke7 {[%clk 0:01:05]} 0-1

[Event "*** SCC Grand Prix: Titled Tuesday Blitz"]
[Site "Chess.com"]
[Date "2020.08.25"]
[Round "1"]
[White "Revnov"]
[Black "jerry_77"]
[Result "1-0"]
[WhiteElo "2700"]
[BlackElo "2363"]
[TimeControl "180+1"]
[EndTime "10:06:40 PDT"]
[Termination "Revnov won by resignation"]

1. e4 {[%clk 0:03:00.1]} 1... c6 {[%clk 0:02:56.1]} 2. Nf3 {[%clk 0:02:59.7]}
2... d5 {[%clk 0:02:54]} 3. exd5 {[%clk 0:03:00.6]} 3... cxd5 {[%clk 0:02:54.8]}
4. d4 {[%clk 0:03:01.5]} 4... Nc6 {[%clk 0:02:54.5]} 5. Bb5 {[%clk 0:02:59.7]}
5... Nf6 {[%clk 0:02:54.2]} 6. Ne5 {[%clk 0:02:57.8]} 6... Bd7 {[%clk
0:02:54.2]} 7. Bxc6 {[%clk 0:02:57.8]} 7... bxc6 {[%clk 0:02:53.1]} 8. O-O
{[%clk 0:02:57.5]} 8... g6 {[%clk 0:02:53.3]} 9. c4 {[%clk 0:02:56]} 9... Bg7
{[%clk 0:02:53]} 10. Nc3 {[%clk 0:02:56.2]} 10... O-O {[%clk 0:02:52.4]} 11. c5
{[%clk 0:02:55]} 11... Ne8 {[%clk 0:02:38.5]} 12. Re1 {[%clk 0:02:53.1]} 12...
Nc7 {[%clk 0:02:36.9]} 13. h4 {[%clk 0:02:45.1]} 13... h5 {[%clk 0:02:29.3]} 14.
Qa4 {[%clk 0:02:37.2]} 14... Ne6 {[%clk 0:02:18.5]} 15. Bd2 {[%clk 0:02:25.9]}
15... Rb8 {[%clk 0:01:55.9]} 16. Rab1 {[%clk 0:02:20.9]} 16... Be8 {[%clk
0:01:33.6]} 17. Nxg6 {[%clk 0:02:14.2]} 17... fxg6 {[%clk 0:01:28.5]} 18. Rxe6
{[%clk 0:02:14]} 18... Qd7 {[%clk 0:01:29]} 19. Rbe1 {[%clk 0:02:12.4]} 19...
Rxb2 {[%clk 0:01:25.6]} 20. Qd1 {[%clk 0:02:07.9]} 20... Bf6 {[%clk 0:01:12]}
21. Bc1 {[%clk 0:02:00]} 21... Rb4 {[%clk 0:00:58.9]} 22. Rxf6 {[%clk
0:01:47.7]} 22... exf6 {[%clk 0:00:53.4]} 23. Bh6 {[%clk 0:01:46.6]} 23... Rf7
{[%clk 0:00:47.3]} 24. Qe2 {[%clk 0:01:46.6]} 24... Rb8 {[%clk 0:00:46.3]} 25.
Nd1 {[%clk 0:01:37.4]} 25... Rh7 {[%clk 0:00:44.7]} 26. Bf4 {[%clk 0:01:36.6]}
26... Rd8 {[%clk 0:00:42.1]} 27. Bd6 {[%clk 0:01:33.8]} 27... Bf7 {[%clk
0:00:41.8]} 28. Ne3 {[%clk 0:01:33.8]} 28... Re8 {[%clk 0:00:39.3]} 29. Qf3
{[%clk 0:01:33.9]} 29... Kg7 {[%clk 0:00:30.9]} 30. Qg3 {[%clk 0:01:28]} 30...
Re4 {[%clk 0:00:27.4]} 31. Rd1 {[%clk 0:01:24.7]} 31... Rh8 {[%clk 0:00:27.1]}
32. a4 {[%clk 0:01:17.5]} 32... Rhe8 {[%clk 0:00:27.1]} 33. a5 {[%clk
0:01:17.8]} 33... Be6 {[%clk 0:00:20.6]} 34. a6 {[%clk 0:01:16.3]} 34... Bg4
{[%clk 0:00:18.2]} 35. Rb1 {[%clk 0:01:16]} 35... Rxe3 {[%clk 0:00:16]} 36. fxe3
{[%clk 0:01:13.8]} 36... Qf5 {[%clk 0:00:16.3]} 37. Rb7+ {[%clk 0:01:12]} 37...
Kh8 {[%clk 0:00:10.8]} 38. Rxa7 {[%clk 0:01:11.3]} 38... Qe4 {[%clk 0:00:03.8]}
39. Rc7 {[%clk 0:01:06.6]} 39... Rb8 {[%clk 0:00:01.4]} 40. Rb7 {[%clk
0:01:04.2]} 40... Ra8 {[%clk 0:00:01.4]} 41. a7 {[%clk 0:01:04.4]} 41... Qe8
{[%clk 0:00:01.1]} 42. Rb8 {[%clk 0:01:04.4]} 42... Bf5 {[%clk 0:00:01.3]} 43.
Rxe8+ {[%clk 0:01:03.6]} 1-0

[Event "*** SCC Grand Prix: Titled Tuesday Blitz"]
[Site "Chess.com"]
[Date "2020.08.25"]
[Round "1"]
[White "ChessicallyInclined"]
[Black "GAusal"]
[Result "1-0"]
[WhiteElo "2510"]
[BlackElo "2152"]
[TimeControl "180+1"]
[EndTime "10:06:42 PDT"]
[Termination "ChessicallyInclined won on time"]

1. d4 {[%clk 0:02:59]} 1... d6 {[%clk 0:02:55.9]} 2. e4 {[%clk 0:02:56.1]} 2...
e5 {[%clk 0:02:48.6]} 3. Nf3 {[%clk 0:02:55.7]} 3... Be7 {[%clk 0:02:38.9]} 4.
dxe5 {[%clk 0:02:54.6]} 4... dxe5 {[%clk 0:02:16.9]} 5. Qxd8+ {[%clk 0:02:52.4]}
5... Bxd8 {[%clk 0:02:16.1]} 6. Nxe5 {[%clk 0:02:52.6]} 6... Nd7 {[%clk
0:02:10.5]} 7. Nxd7 {[%clk 0:02:52.1]} 7... Bxd7 {[%clk 0:02:09.8]} 8. Bf4
{[%clk 0:02:51.8]} 8... c6 {[%clk 0:02:01.8]} 9. Nd2 {[%clk 0:02:50]} 9... Nf6
{[%clk 0:02:00.1]} 10. f3 {[%clk 0:02:48.3]} 10... O-O {[%clk 0:01:56.4]} 11.
O-O-O {[%clk 0:02:48.7]} 11... Re8 {[%clk 0:01:51.9]} 12. Nc4 {[%clk 0:02:47.3]}
12... b5 {[%clk 0:01:48.1]} 13. Nd6 {[%clk 0:02:44]} 13... Bc7 {[%clk
0:01:44.6]} 14. Kb1 {[%clk 0:02:37]} 14... Red8 {[%clk 0:01:39.9]} 15. c4 {[%clk
0:02:25.3]} 15... Ne8 {[%clk 0:01:35.6]} 16. c5 {[%clk 0:02:22.6]} 16... f6
{[%clk 0:01:31.7]} 17. Be2 {[%clk 0:02:17.9]} 17... Be6 {[%clk 0:01:27.9]} 18.
Bg3 {[%clk 0:02:11.7]} 18... Nxd6 {[%clk 0:01:24]} 19. cxd6 {[%clk 0:02:08.2]}
19... Bb6 {[%clk 0:01:20.7]} 20. Rc1 {[%clk 0:02:07.5]} 20... Bd7 {[%clk
0:01:14.3]} 21. Rhd1 {[%clk 0:01:55.8]} 21... a5 {[%clk 0:01:09.8]} 22. f4
{[%clk 0:01:48.7]} 22... Rac8 {[%clk 0:01:05.7]} 23. Bf3 {[%clk 0:01:45.6]}
23... Be3 {[%clk 0:01:00.8]} 24. Rc3 {[%clk 0:01:42]} 24... Bb6 {[%clk 0:00:57]}
25. e5 {[%clk 0:01:41.6]} 25... a4 {[%clk 0:00:48.8]} 26. Rdc1 {[%clk
0:01:33.5]} 26... Bf5+ {[%clk 0:00:38.8]} 27. Ka1 {[%clk 0:01:32.4]} 27... Bd4
{[%clk 0:00:31.5]} 28. Rxc6 {[%clk 0:01:25.8]} 28... Rxc6 {[%clk 0:00:25.5]} 29.
Rxc6 {[%clk 0:01:26.7]} 29... a3 {[%clk 0:00:20.3]} 30. Rc3 {[%clk 0:00:55.6]}
30... axb2+ {[%clk 0:00:06.3]} 31. Kxb2 {[%clk 0:00:56.5]} 31... b4 {[%clk
0:00:05.9]} 32. Bd5+ {[%clk 0:00:49.3]} 32... Kf8 {[%clk 0:00:02.8]} 33. Be1
{[%clk 0:00:49.3]} 33... bxc3+ {[%clk 0:00:02.4]} 34. Bxc3 {[%clk 0:00:50.2]}
34... Bxc3+ {[%clk 0:00:02.5]} 35. Kxc3 {[%clk 0:00:51.1]} 35... fxe5 {[%clk
0:00:02.5]} 36. fxe5 {[%clk 0:00:52]} 36... Re8 {[%clk 0:00:01.7]} 37. Kd4
{[%clk 0:00:52]} 1-0